{"text_format":"3","workbook":"xlsx","n_sheets":1,"sheets":["نسبة السكر وضغط الدم"],"not_rendered":{"defined_names":9},"read":"whole","date_system":"1900"}

{"sheet":"نسبة السكر وضغط الدم","index":0,"n_rows":13,"n_cols":11,"rows_kept":13,"merged":[[0,1,4,3],[0,4,0,9],[1,4,1,6],[1,7,1,9]]}
[null,"متعقب نسبة السكر وضغط الدم",null,null,"خصّص قيم القياس الموجودة في الخلية E2 حتى الخلية J5 أدناه."]
[{"$nulls":4},"ضغط الدم",null,null,"مقياس نسبة السكر"]
[{"$nulls":4},120,"الانقباضي",140,70,100,150]
[{"$nulls":4},80,"الانبساطي",90,"منخفض","عادي","مرتفع"]
[{"$nulls":4},"الضغط القياسي",null,"الاتصال بالطبيب"]
[null,"التاريخ","الوقت","الحدث","الانقباضي","الانبساطي","معدّل نبضات القلب","نسبة السكر","المستوى","الحالة","الملاحظات"]
[null,{"$f":"TODAY()","v":"2022-08-10"},"06:00:00","الاستيقاظ",129,79,72,55,{"$f":"نسبة_السكر_وضغط_الدم[[#This Row],[نسبة السكر]]","v":55},{"$f":"IFERROR(IF(نسبة_السكر_وضغط_الدم[[#This Row],[المستوى]]=0,\"\",IF(نسبة_السكر_وضغط_الدم[[#This Row],[المستوى]]<=س_منخفضة,\"منخفض\",IF(AND(نسبة_السكر_وضغط_الدم[[#This Row],[المستوى]]>س_منخفضة,نسبة_السكر_وضغط_الدم[[#This Row],[المستوى]]<س_مرتفعة),\"عادي\",\"مرتفع\"))), \"\")","v":"منخفض"}]
[null,{"$f":"TODAY()","v":"2022-08-10"},"07:00:00","قبل الوجبة",120,80,74,70,{"$f":"نسبة_السكر_وضغط_الدم[[#This Row],[نسبة السكر]]","v":70},{"$f":"IFERROR(IF(نسبة_السكر_وضغط_الدم[[#This Row],[المستوى]]=0,\"\",IF(نسبة_السكر_وضغط_الدم[[#This Row],[المستوى]]<=س_منخفضة,\"منخفض\",IF(AND(نسبة_السكر_وضغط_الدم[[#This Row],[المستوى]]>س_منخفضة,نسبة_السكر_وضغط_الدم[[#This Row],[المستوى]]<س_مرتفعة),\"عادي\",\"مرتفع\"))), \"\")","v":"منخفض"}]
[null,"2022-08-10","09:00:00","بعد الوجبة",133,80,75,75,{"$f":"نسبة_السكر_وضغط_الدم[[#This Row],[نسبة السكر]]","v":75},{"$f":"IFERROR(IF(نسبة_السكر_وضغط_الدم[[#This Row],[المستوى]]=0,\"\",IF(نسبة_السكر_وضغط_الدم[[#This Row],[المستوى]]<=س_منخفضة,\"منخفض\",IF(AND(نسبة_السكر_وضغط_الدم[[#This Row],[المستوى]]>س_منخفضة,نسبة_السكر_وضغط_الدم[[#This Row],[المستوى]]<س_مرتفعة),\"عادي\",\"مرتفع\"))), \"\")","v":"عادي"}]
[null,"2022-08-10","10:00:00","ضغط الدم فقط",143,91,75,190,{"$f":"نسبة_السكر_وضغط_الدم[[#This Row],[نسبة السكر]]","v":190},{"$f":"IFERROR(IF(نسبة_السكر_وضغط_الدم[[#This Row],[المستوى]]=0,\"\",IF(نسبة_السكر_وضغط_الدم[[#This Row],[المستوى]]<=س_منخفضة,\"منخفض\",IF(AND(نسبة_السكر_وضغط_الدم[[#This Row],[المستوى]]>س_منخفضة,نسبة_السكر_وضغط_الدم[[#This Row],[المستوى]]<س_مرتفعة),\"عادي\",\"مرتفع\"))), \"\")","v":"مرتفع"}]
[null,"2022-08-10","12:00:00","قبل الوجبة",141,84,70,140,{"$f":"نسبة_السكر_وضغط_الدم[[#This Row],[نسبة السكر]]","v":140},{"$f":"IFERROR(IF(نسبة_السكر_وضغط_الدم[[#This Row],[المستوى]]=0,\"\",IF(نسبة_السكر_وضغط_الدم[[#This Row],[المستوى]]<=س_منخفضة,\"منخفض\",IF(AND(نسبة_السكر_وضغط_الدم[[#This Row],[المستوى]]>س_منخفضة,نسبة_السكر_وضغط_الدم[[#This Row],[المستوى]]<س_مرتفعة),\"عادي\",\"مرتفع\"))), \"\")","v":"عادي"}]
[null,{"$f":"TODAY()","v":"2022-08-10"},"15:00:00","بعد الوجبة",132,80,68,90,{"$f":"نسبة_السكر_وضغط_الدم[[#This Row],[نسبة السكر]]","v":90},{"$f":"IFERROR(IF(نسبة_السكر_وضغط_الدم[[#This Row],[المستوى]]=0,\"\",IF(نسبة_السكر_وضغط_الدم[[#This Row],[المستوى]]<=س_منخفضة,\"منخفض\",IF(AND(نسبة_السكر_وضغط_الدم[[#This Row],[المستوى]]>س_منخفضة,نسبة_السكر_وضغط_الدم[[#This Row],[المستوى]]<س_مرتفعة),\"عادي\",\"مرتفع\"))), \"\")","v":"عادي"},"تناول دواء ضغط الدم مع الوجبة"]
[null,"المعدلات",null,null,{"$f":"SUBTOTAL(101,نسبة_السكر_وضغط_الدم[الانقباضي])","v":133},{"$f":"SUBTOTAL(101,نسبة_السكر_وضغط_الدم[الانبساطي])","v":{"v":82.33333333333333,"d":"82"}},{"$f":"SUBTOTAL(101,نسبة_السكر_وضغط_الدم[معدّل نبضات القلب])","v":{"v":72.33333333333333,"d":"72"}},{"$f":"SUBTOTAL(101,نسبة_السكر_وضغط_الدم[نسبة السكر])","v":{"v":103.33333333333333,"d":"103"}}]